Cogmind - Beta 11 @@@ ROGUE MODE // 2022.04.05 @ 00:34:58 Player: THR33-1NT Result: Destroyed by G-34 Mercenary with Small Laser Performance ------------- Evolutions (0) 0 Regions Visited (2) 400 Robots Destroyed (25) 125 Value Destroyed (644) 644 Prototype IDs (0) 0 Alien Tech Used (0) 0 Bonus (0) 0 TOTAL SCORE: 1169 Bonus ------- None Cogmind --------- Core Integrity 0/250 Matter 290/300 Energy 237/250 System Corruption 0% Temperature Cool (7) Movement Walking (190) Ox1 Location -10/Mines Parts ------- > --- POWER (1) -------- Ion Engine > --- PROPULSION (2) --- Aluminum Leg > --- UTILITY (2) ------ Heat Sink Medium Storage Unit > --- WEAPON (2) ------- Small Laser Light Assault Rifle > --- INVENTORY (10) --- Improved Terrain Scanner Seismic Detector Transport Network Coupler Small Laser Mini Grenade Launcher Mining Laser Peak State ------------ > --- POWER ------------ Ion Engine > --- PROPULSION ------- Light Treads Light Treads > --- UTILITY ---------- Small Storage Unit Improved Terrain Scanner > --- WEAPON ----------- Medium Laser Small Laser > --- INVENTORY -------- Light Ion Engine Aluminum Leg Aluminum Leg Wheel Wheel EM Pulse Gun [Rating: 9] Favorites ----------- Power Ion Engine Engine Ion Engine Propulsion Light Treads Treads Light Treads Leg Aluminum Leg Utility Light Armor Plating Device Seismic Detector Storage Small Storage Unit Protection Light Armor Plating Weapon Medium Laser Energy Gun Medium Laser Ballistic Gun Light Assault Rifle Launcher Mini Grenade Launcher Special Weapon Mining Laser Build | -11 -10 -10 ------- Run | Scr Mat Min Slots Evolved . | . . . Power . | . . . Propulsion . | . . . Utility . | . . . Weapon . | . . . Parts Attached 33 | 8 12 13 Power 4 | 1 2 1 Engine 4 | 1 2 1 Core . | . . . Reactor . | . . . Propulsion 5 | 2 1 2 Treads 4 | 2 1 1 Leg 1 | . . 1 Wheel . | . . . Hover . | . . . Flight . | . . . Utility 11 | 3 4 4 Device 4 | 2 . 2 Storage 2 | 1 1 . Processor . | . . . Hackware . | . . . Protection 5 | . 3 2 Artifact . | . . . Weapon 13 | 2 5 6 Energy Gun 8 | 2 3 3 Energy Cannon . | . . . Ballistic Gun 3 | . 2 1 Ballistic Cannon . | . . . Launcher 1 | . . 1 Special Weapon 1 | . . 1 Impact Weapon . | . . . Slashing Weapon . | . . . Piercing Weapon . | . . . Special Melee Weapon . | . . . Unidentified Prototypes . | . . . Parts Lost 7 | . . 7 Power 1 | . . 1 Propulsion 3 | . . 3 Utility 2 | . . 2 Weapon 1 | . . 1 Highest Loss Streak 5 | . . 5 To Critical Strikes . | . . . Average Slot Usage (%) 97 | . 99 90 Engine 14 | . 14 14 Treads 25 | . 28 17 Device 2 | . 2 1 Storage 14 | . 14 14 Protection 11 | . 11 12 Energy Gun 18 | . 21 10 Ballistic Gun 8 | . 6 14 Naked Turns . | . . . Heaviest Build 20 | 14 19 20 Greatest Support 40 | 40 40 40 Greatest Overweight (x) 6 | 1 . 6 Average Overweight (x) . | . . . Largest Inventory Capacity 10 | 8 10 10 Average Capacity 8 | 7 8 10 Most Carried 10 | 8 10 10 Average Carried 7 | 5 8 8 Final Capacity 10 | 8 10 10 Final Carried 10 | 8 10 6 Class Distribution -------------------- 80% | Mutant 19% | Scavenger-Mutant Dominant Class ---------------- Mutant | -10/Materials Scavenger-Mutant | -10/Mines Resources | -11 -10 -10 ----------- Run | Scr Mat Min Matter Collected 659 | 280 218 161 Remotely . | . . . Salvage Created 867 | 102 473 292 Parts 39 | 6 21 12 Haulers Intercepted 1 | . 1 . Recyclers Shooed 1 | 1 . . Parts Field Recycled . | . . . Retrieved Matter . | . . . Parts Self-Destructed . | . . . Prevented . | . . . Kills | -11 -10 -10 ------- Run | Scr Mat Min Combat Hostiles Destroyed 21 | . 9 12 Guns 18 | . 9 9 AOE 3 | . . 3 Classes Destroyed 8 | 2 4 2 Worker 1 | . 1 . Tunneler 2 | 2 . . Hauler 1 | . 1 . Recycler 1 | 1 . . Watcher 2 | . 2 . Swarmer 3 | . . 3 Grunt 15 | . 9 6 Assembled 3 | . . 3 Best Kill Streak 4 | 2 4 4 Combat Bots Only 4 | . 4 4 Max Kills in Single Turn 2 | 1 1 2 Gunslinging . | . . . Exploded 2 | . . 2 Melee . | . . . Uniques/NPCs Destroyed . | . . . Combat | -11 -10 -10 -------- Run | Scr Mat Min Damage Taken 1529 | . 622 907 Core 257 | . 82 175 Absorbed by Shields . | . . . Regen/Repaired (Parts) 24 | . 24 . Core Remaining (%) 100 | 100 . . Volleys Fired 118 | 7 56 55 Largest 2 | 2 2 2 Hottest 100 | 90 90 100 Shots Fired 212 | 14 112 86 Gun 209 | 14 112 83 Cannon . | . . . Launcher 2 | . . 2 Special 1 | . . 1 Kinetic 93 | . 41 52 Thermal 117 | 14 71 32 Explosive 2 | . . 2 Electromagnetic . | . . . Robot Hit Streak 11 | 5 11 8 Robot Miss Streak 6 | 1 4 6 Penetration Max . | . . . Secondary Targets . | . . . Shots Hit Robots 145 | 10 77 58 Core Hits 59 | 4 29 26 Critical Kills . | . . . Critical Parts Destroyed . | . . . Critical Strikes 2 | . 2 . Burn 2 | . 2 . Melee Attacks . | . . . Impact . | . . . Slashing . | . . . Piercing . | . . . Sneak Attacks . | . . . Combat Hostiles . | . . . Follow-up Attacks . | . . . Damage Inflicted 1691 | 113 832 746 Guns 1483 | 113 832 538 Cannons . | . . . Explosions 208 | . . 208 Melee . | . . . Ramming . | . . . Kinetic 525 | . 209 316 Thermal 958 | 113 623 222 Explosive 208 | . . 208 Electromagnetic . | . . . Impact . | . . . Slashing . | . . . Piercing . | . . . Highest Corruption . | . . . Average Corruption . | . . . Corruption Purged . | . . . Corruption Blocked . | . . . Overload Shots . | . . . Overflow Damage . | . . . Projectiles . | . . . Explosions . | . . . Melee . | . . . Knockbacks . | . . . Impact . | . . . Kinetic . | . . . Secondary . | . . . Self-Inflicted Damage 47 | . . 47 Shots 2 | . . 2 Rammed . | . . . Targets Rammed . | . . . Kicked . | . . . Crushed . | . . . Highest Temperature 423 | 150 423 304 Average Temperature 109 | 62 105 126 Received Heat Transfer 789 | . 345 444 Effects 5 | . 2 3 Energy Bleed 3 | . 1 2 Interference 1 | . . 1 Matter Decay 1 | . 1 . Siege Activations . | . . . Robots Corrupted . | . . . Combat Hostiles . | . . . Parts Fried . | . . . Impact Corruptions . | . . . Robots Melted . | . . . Combat Hostiles . | . . . Parts Melted 6 | . 6 . Heat Transferred 2855 | 310 1891 654 Parts Sabotaged . | . . . Parts Stolen . | . . . Parts Stripped . | . . . Power Chain Reactions . | . . . Missiles Intercepted . | . . . Alert | -11 -10 -10 ------- Run | Scr Mat Min Peak Influence 241 | 15 220 241 Initial 32 | . 9 32 Average 94 | 6 73 192 Maximum Alert Level 1 | . 1 1 Low Security (%) 87 | 100 93 64 Level 1 12 | . 6 35 Level 2 . | . . . Level 3 . | . . . Level 4 . | . . . Level 5 . | . . . High Security . | . . . Max Security . | . . . Squads Dispatched 4 | . 4 . Investigation 2 | . 2 . Extermination . | . . . Reinforcement 2 | . 2 . Assault . | . . . Garrison . | . . . Intercept . | . . . Searches Triggered . | . . . Construction Impeded . | . . . Haulers Reinforced . | . . . Active Scanning Responses . | . . . Cargo Convoy Interrupts . | . . . Stealth | -11 -10 -10 --------- Run | Scr Mat Min Distress Signals 1 | . 1 . Communications Jammed . | . . . Distress Signals . | . . . Times Spotted 36 | . 18 18 Peak Tracking Total 6 | . 4 6 Tactical Retreats 2 | . 1 1 Traps | -11 -10 -10 ------- Run | Scr Mat Min Traps Triggered 2 | . 2 . Indirectly . | . . . Trap Hack Attempts . | . . . Triggered . | . . . Disarmed . | . . . Reprogrammed . | . . . Reused . | . . . Traps Extracted . | . . . Installed . | . . . Triggered . | . . . Machines | -11 -10 -10 ---------- Run | Scr Mat Min Machines Disabled 1 | . . 1 Max in Single Turn 1 | . . 1 Machines Sabotaged . | . . . Garrisons Compromised . | . . . Overloaded Fab Kills . | . . . Hacking | -11 -10 -10 --------- Run | Scr Mat Min Machines Accessed 4 | . 4 . Terminals 2 | . 2 . Fabricators . | . . . Repair Stations 1 | . 1 . Recycling Units 1 | . 1 . Scanalyzers . | . . . Garrison Access . | . . . Total Hacks 9 | . 9 . Successful 4 | . 4 . Failed 5 | . 5 . Catastrophic . | . . . Database Lockouts . | . . . Manual 2 | . 2 . Terminals 4 | . 4 . Fabricators . | . . . Repair Stations 2 | . 2 . Recycling Units 3 | . 3 . Scanalyzers . | . . . Garrison Access . | . . . Terminal Hacks . | . . . Fabricator Hacks . | . . . Repair Station Hacks 2 | . 2 . Scan Component 1 | . 1 . Repair 1 | . 1 . Recycling Unit Hacks 2 | . 2 . Report Inventory 1 | . 1 . Retrieve Components 1 | . 1 . Scanalyzer . | . . . Garrison Access Hacks . | . . . Unauthorized Hacks . | . . . Terminals . | . . . Fabricators . | . . . Repair Stations . | . . . Recycling Units . | . . . Scanalyzers . | . . . Garrison Access . | . . . Data Cores Recovered . | . . . Used . | . . . Hacking Detections 3 | . 3 . Full Trace Events . | . . . Feedback Events . | . . . Feedback Blocked . | . . . Robot Schematics Acquired . | . . . Robots Built . | . . . Authchips . | . . . Time . | . . . Total Robot Build Rating . | . . . Part Schematics Acquired . | . . . Parts Built . | . . . Authchips . | . . . Time . | . . . Total Part Build Rating . | . . . Parts Repaired 1 | . 1 . Time 13 | . 13 . Parts Recycled . | . . . Recycled Matter . | . . . Retrieved Matter . | . . . Retrieved Components 9 | . 9 . Parts Scanalyzed . | . . . Part Schematics Acquired . | . . . Parts Damaged . | . . . Bothacking | -11 -10 -10 ------------ Run | Scr Mat Min Used RIF Installer . | . . . Robots Hacked . | . . . Non-combat . | . . . Combat . | . . . Robot Hacks Applied . | . . . Relay Couplers Released . | . . . Fabnet Peak Effective % . | . . . Robots Rewired . | . . . Allies Hacked . | . . . Hacks Repelled . | . . . Allies | -11 -10 -10 -------- Run | Scr Mat Min Total Allies . | . . . Largest Group . | . . . Highest-Rated Group . | . . . Highest-Rated Ally . | . . . Total Orders . | . . . Ally Attacks . | . . . Total Damage . | . . . Kills . | . . . Allies Corrupted . | . . . Allies Melted . | . . . Intel | -11 -10 -10 ------- Run | Scr Mat Min Robot Analysis Total . | . . . Derelict Logs Recovered . | . . . Drone Launches . | . . . Drone Recoveries . | . . . Exploration | -11 -10 -10 ------------- Run | Scr Mat Min Turns Passed 1607 | 140 1103 364 Spaces Moved 729 | 64 543 122 Core 5 | 2 . 3 Treads 676 | 62 543 71 Legs 48 | . . 48 Wheels . | . . . Hover . | . . . Flight . | . . . Fastest Speed 50 | 50 160 160 Average Speed 162 | 157 160 176 Slowest Speed 350 | 160 160 350 Overloaded Moves . | . . . Propulsion Burnouts . | . . . Robots Hopped . | . . . Cave-ins Triggered . | . . . Exploration Rate (%) 36 | 4 70 34 Regions Visited 2 Branch Regions 1 Pre-discovered Areas . | . . . Known Exits Taken . | . . . Unknown Exits Taken 2 | 1 1 . Scrap Searched . | . . . Spaces Dug 7 | . . 7 Terrain Destroyed 14 | . . 14 Melee . | . . . Projectile . | . . . AOE 14 | . . 14 Terrain Rammed . | . . . Walls Destroyed . | . . . Machines Disabled . | . . . Actions | -11 -10 -10 --------- Run | Scr Mat Min Total 960 | 86 683 191 Wait 42 | . 42 . Move 727 | 63 542 122 Hop . | . . . Pick Up 19 | 7 12 . Fast Attach 12 | 8 2 2 Attach 4 | . . 4 Detach 1 | 1 . . Swap 17 | . 10 7 Drop 20 | . 19 1 Fire 118 | 7 56 55 Melee . | . . . Ram . | . . . Kick . | . . . Crush . | . . . Escape Stasis . | . . . Rewire . | . . . Trap . | . . . Miscellaneous . | . . . Route ------- -11/Scrapyard -10/Materials (discovered 3 exits: [*Mat x2] / [*Min]) -10/Mines History --------- Turn | Location | Event 11 | -11/Scrapyard | Discovered new exit (range 16) 141 | -11/Scrapyard | Entered Materials 305 | -10/Materials | Build established: Mutant 483 | -10/Materials | Repaired Med. Laser 610 | -10/Materials | Discovered new exit (range 10) 843 | -10/Materials | Discovered new exit (range 13) 1092 | -10/Materials | Discovered new exit (range 8) 1244 | -10/Materials | Entered Mines 1327 | -10/Mines | Excavation squad dispatched 1327 | -10/Mines | A large section of the Mines collapsed 1369 | -10/Mines | Core integrity fell below 50% 1453 | -10/Mines | Core integrity fell below 20% 1513 | -10/Mines | Lost 5 parts (1p2n1u1w) 1577 | -10/Mines | Excavation squad dispatched 1608 | -10/Mines | Destroyed by G-34 Mercenary with Small Laser Last Messages --------------- 01450_ Acquired 33 matter. 01458_ Med. Laser destroyed. 01460_ Lgt. Treads destroyed. 01471_ G-34 Mercenary destroyed. 01479_ Acquired 46 matter. 01482_ Lgt. Treads destroyed. 01483_ G-34 Mercenary destroyed. 01490_ R-06 Scavenger collects Aluminum Leg. 01493_ R-06 Scavenger collects Ion Engine. 01496_ G-34 Mercenary destroyed. 01500_ Acquired 13 matter. 01504_ Acquired 1 matter. 01512_ Acquired Aluminum Leg. 01513_ Acquired 10 matter. 01519_ Acquired Sml. Laser. 01521_ Acquired 10 matter. 01577_ ALERT: Derelict activity in mines confirmed. Dispatching additional escorted excavation squad. 01584_ K-01 Serf collects debris. 01605_ Lgt. Armor Plating destroyed. Map ----- +----------------------------------------------------+ | ?????????????????????????????????????????????????? | | ?????????????????????????????????????????????????? | | ?????????????????????????????????????????????????? | | ?????????????????????????????????????????????????? | | ?????????????????????????????????????????????????? | | ?????????????????????????????????????????????????? | | ?????????????????????????????????????????????????? | | ?????????????????????????????????????????????????? | | ?????????????????????????????????????????????????? | | ?????????????????????????????????????????????????? | | ?????????????????????????????????????????????????? | | ?????????????????????????????????????????????????? | | ?????##########??????????????????????????????????? | | ?????# ??????????????????????????????????? | | ?????# #??????????????????????????????? | | ?????# """ """ #??????????????????????????????? | | ?????# """ """ ??????????#?????????????????????? | | ?????# """ """ ???????????# ?????????????????????? | | ?????# ???????????##k ?????????????????????? | | ?????? ????????????## ??????????????????????? | | #??????# #????????????## ??????????????????????? | | ##?????# #??????????### ??????????????????????? | | %####### ###???????## ??????????????????????? | | %%% #??????## #??????????????????????? | | ######## ###????# #??????????????????????? | | #??????# #????# @##?????????????????????? | | #??##### #????## ##????????????????????? | | ##?# #### #?????## ######???????????????? | | #?# ### #??????# g #???????????????? | | ? ## #?????## ### #???????????????? | | ## #????## gg### ### "?????????? | | #?# #????# gg "?????????? | | #??# #????# tg r ????????? | | ## #?### ####?# ## ## ## ?????????? | | ###?????# #?# t##?# ##??#??????????????? | | "#??????# """ #?## #???###??????????????????? | | #??????# """ #### t #????????????????????????? | | "#?????## " #????????????????????????? | | "#?????## #????????????????????????? | | ?????## ### #????????????????????????? | | ?????# #?# #????????????????????????? | | ###????#########?# ##????????????????????????? | | #??????## ##? ##?????????????????????????? | | #???????## ##? #??????????????????????????? | | ????????# #? #??????????????????????????? | | ????????# ##??????????????????????????? | | ???????? ##???????????????????????????? | | #??????? ##????????????????????????????? | | ??????? ### #??????????????????????????????? | | ?????? ####??#####???????????????????????????????? | +----------------------------------------------------+ Best States ------------- Heat Dissipation 35 Energy Generation 10 Energy Capacity 250 Matter Stores 300 Matter Capacity 300 Sight Range 16 Terrain Scan Range 16 Terrain Scan Density 10 Armor Coverage 150 Evasion (%) 40 Recoil Reduction 2 Item Schematics ----------------- None Robot Schematics ------------------ None Fabricated ------------ Nothing Alien Tech Used ----------------- None Achievements -------------- None Challenges ------------ None Game ------ Seed ShrapnelRecyclingCoupler Manual? 0 Play Time 00:13:10 Cumulative 6.9 hours Start 2022.04.05 @ 00:21:11 End 2022.04.05 @ 00:34:58 Sessions 1 Manual Loads 0 Difficulty Rogue Special Mode None Game No. 5 Rogue 5 Adventurer 0 Explorer 0 Win Type - Total 0 Types 0/0/0/0/0/0/0/0/0 Lore% 16 Gallery% 18 Achievement% 18 Wizard Run 0 Options --------- ASCII 0 Keyboard 0 Movement Mouse Keybinds 0 Fullscreen 1 Font 18/X11 Map View 76x50 Tactical HUD 1 Map Filters NONE Filters NONE Steam 1 RUN: b92cef22-ac3e-41f8-baca-9b60e38e5c75